bitfinex/quotes_ETHUSD_20241024
["timestamp","ask_amount","ask_price","bid_price","bid_amount"]
[1729731939623,3.0,2548.1,2547.6,0.04847714]
[1729731939933,3.09812091,2548.2,2547.7,3.53258]
[1729731940097,0.09812091,2548.2,2547.6,0.04847714]
[1729731940305,500.0,2784.0,2547.6,0.04847714]
[1729731940306,7.06253,2548.7,2548.0,3.5321]
[1729731940610,7.06256,2548.7,2548.1,3.61042792]
[1729731940934,3.53136,2548.6,2548.1,0.07847792]
[1729731941091,3.62933137,2548.7,2548.1,3.61048792]
[1729731941286,7.16062137,2548.7,2548.1,4.40473443]
[1729731941493,3.53138,2548.6,2548.1,0.87271443]
[1729731941831,3.62933137,2548.7,2548.1,0.87271443]
[1729731941832,3.53149,2548.5,2548.1,0.79423651]
[1729731942132,3.53149,2548.5,2547.9,0.7513]
[1729731942133,3.5319,2548.2,2547.9,0.7513]
[1729731942424,3.62993297,2548.3,2547.6,4.28395]
[1729731942675,3.62993297,2548.3,2547.6,4.28391]
[1729731942806,3.53198,2548.2,2547.6,4.28391]
[1729731943198,3.53198,2548.2,2547.6,8.61094118]
[1729731943641,3.53198,2548.2,2547.6,5.07829118]
[1729731943930,3.53198,2548.2,2547.6,8.61094118]
[1729731944296,3.62993297,2548.3,2547.6,5.07829118]
[1729731944524,3.53221,2548.0,2547.6,0.75048574]
[1729731944792,3.53232,2547.9,2547.3,0.04848564]
[1729731945019,3.63062073,2547.8,2547.7,0.10499871]
[1729731945239,3.53262,2547.7,2547.2,3.5332]
[1729731945412,0.79227407,2547.8,2547.7,0.10499871]
[1729731945752,0.0981306,2547.9,2547.5,3.53287]
[1729731945959,0.0981306,2547.9,2547.7,0.10499871]
[1729731946477,0.0981306,2547.9,2547.5,3.53287]
[1729731946478,0.0981306,2547.9,2547.8,0.10499871]
[1729731946616,0.09813055,2548.0,2547.8,0.10499871]
[1729731946818,3.53248,2547.8,2547.2,7.06637]
[1729731947048,3.53245,2547.9,2547.4,3.53297]
[1729731947431,3.53245,2547.9,2547.4,4.28427]
[1729731948252,0.89034961,2548.0,2547.5,3.53286]
[1729731948425,0.89034961,2548.0,2547.4,0.7513]
[1729731948626,0.89034961,2548.0,2547.2,3.53321]
[1729731948627,3.53244,2547.9,2547.3,3.53313]
[1729731949143,3.53244,2547.9,2547.2,4.28451]
[1729731949314,0.09813061,2547.8,2547.4,3.53299]
[1729731949654,3.53244,2547.9,2547.4,3.53299]
[1729731950048,0.09813061,2548.0,2547.5,3.53285]
[1729731951294,4.42255867,2548.0,2547.2,4.28452]
[1729731951514,3.53247,2547.8,2547.2,7.8177]
[1729731951655,3.63060061,2547.8,2547.3,3.53312]
[1729731951856,0.09813061,2547.9,2547.4,3.53289]
[1729731952095,3.63051061,2547.9,2547.4,3.53289]
[1729731952397,3.63051061,2547.9,2547.2,4.28445]
[1729731952398,7.06505,2547.8,2547.2,4.28445]
[1729731952562,0.09813409,2547.7,2547.2,4.28445]
[1729731952901,0.09813409,2547.8,2547.4,3.53288]
[1729731953662,0.09813409,2547.8,2547.7,3.53259]
[1729731953969,6.53197,2548.2,2547.6,3.53273]
[1729731954173,4.09365578,2548.2,2547.6,3.53273]
[1729731954365,4.09365578,2548.2,2547.7,3.61108421]
[1729731954698,4.09365578,2548.2,2547.8,3.53245]
[1729731956079,4.09365578,2548.2,2547.6,3.53259]
[1729731956383,7.62555578,2548.2,2547.7,3.53248]
[1729731956582,7.62555578,2548.2,2547.6,3.53259]
[1729731956813,4.29103827,2548.1,2547.6,3.53259]
[1729731957016,0.7746,2547.9,2547.2,0.8041]
[1729731957223,0.09813075,2547.8,2547.4,3.53294]
[1729731957375,0.7746,2547.9,2547.6,3.53264]
[1729731957574,0.09813075,2548.0,2547.6,3.53264]
[1729731958136,0.09812067,2548.2,2547.8,3.53238]
[1729731958341,4.3064,2548.3,2547.8,3.53238]
[1729731958500,0.7746,2548.3,2547.8,3.53238]
[1729731958701,0.7746,2548.3,2548.0,3.53211]
[1729731959845,0.7746,2548.3,2548.1,0.10545687]
[1729731961144,1.56818676,2548.3,2548.1,0.10545687]
[1729731961445,3.53206,2548.1,2547.6,3.53272]
[1729731961650,0.09812719,2548.0,2547.7,3.53251]
[1729731961806,0.09812719,2548.2,2547.7,3.53251]
[1729731962209,0.7746,2548.3,2547.9,3.53227]
[1729731962431,0.7746,2548.3,2547.9,3.5322]
[1729731962741,0.7746,2548.3,2547.9,7.06444]
[1729731963043,0.7746,2548.3,2547.9,3.5322]
[1729731963539,0.7746,2548.6,2547.9,3.5322]
[1729731963742,7.76500882,2548.6,2548.1,3.53201]
[1729731964059,3.5315,2548.5,2548.0,3.53217]
[1729731964251,0.8727038,2548.6,2548.1,3.53203]
[1729731964416,0.7746,2548.6,2548.2,3.53182]
[1729731964623,0.09810086,2548.7,2548.4,3.53159]
[1729731964936,7.93474225,2548.9,2548.4,0.8041]
[1729731965145,4.30561,2548.9,2548.4,0.8041]
[1729731965385,4.30561,2548.9,2548.4,0.88257551]
[1729731966281,0.7746,2549.2,2548.7,3.53112]
[1729731966589,0.7746,2549.2,2548.8,0.07846434]
[1729731966894,0.7746,2549.7,2549.2,3.53042]
[1729731967061,3.52968,2549.8,2549.3,0.07844762]
[1729731967267,3.5302,2549.5,2549.0,3.53076]
[1729731967597,4.30486,2549.4,2548.9,0.8041]
[1729731967777,4.30486,2549.4,2548.8,3.53098]
[1729731967954,3.53043,2549.3,2548.8,3.53098]
[1729731968154,7.8352,2549.4,2548.8,3.53098]
[1729731968357,3.53047,2549.3,2548.8,3.53098]
[1729731968554,3.53047,2549.3,2548.7,0.8041]
[1729731968555,4.30493,2549.4,2548.7,0.88255818]
[1729731968852,4.30493,2549.4,2548.9,3.53092]
[1729731969658,4.30493,2549.4,2548.9,3.60937726]
[1729731971214,4.30493,2549.4,2548.8,7.06197]
[1729731971422,4.30493,2549.4,2548.9,3.60931726]
[1729731972409,3.5304,2549.3,2548.8,3.53098]
[1729731972601,0.09807152,2549.2,2548.7,0.8041]
[1729731972804,3.62845845,2549.3,2548.7,4.41375276]
[1729731973011,3.53055,2549.2,2548.7,4.41375276]
[1729731973395,4.33163087,2549.3,2548.7,4.41375276]
[1729731973608,3.0,2549.8,2549.4,3.53015]
[1729731973804,4.34844,2550.0,2549.5,3.53006]
[1729731973975,4.34844,2550.0,2549.4,4.35915]
[1729731974172,5.15403437,2550.0,2549.4,7.88929]
[1729731974371,5.15403437,2550.0,2549.4,7.88926]
[1729731975115,3.62771143,2549.9,2549.5,0.10384883]
[1729731975412,5.15403437,2550.0,2549.5,0.10384883]
[1729731975613,0.819,2550.0,2549.6,3.52988]
[1729731975819,0.819,2550.0,2549.6,3.60831375]
[1729731976118,3.52928,2550.1,2549.7,0.10384883]
[1729731976299,3.62732218,2550.1,2549.7,0.10384883]
[1729731976500,4.34816,2550.2,2549.6,3.60831374]
[1729731976714,5.44392102,2550.2,2549.8,0.10384883]
[1729731977018,3.0,2550.3,2549.7,4.35879]
[1729731977314,6.52902,2550.3,2549.8,0.1024364]
[1729731977819,3.0,2550.3,2549.8,3.6320964]
[1729731978181,3.0,2550.3,2549.8,0.1024364]
[1729731978425,6.62706216,2550.3,2549.8,0.1024364]
[1729731978717,6.52903,2550.3,2549.8,0.1024364]
[1729731978879,6.62706215,2550.3,2549.8,0.1024364]
[1729731979082,6.52903,2550.3,2549.8,0.1024364]
[1729731979313,3.52914,2550.2,2549.8,0.1024364]
[1729731979819,3.52927,2550.1,2549.8,0.1024364]
[1729731980429,3.62717384,2550.2,2549.8,0.1024364]
[1729731980627,3.52942,2550.0,2549.8,0.1024364]
[1729731980840,3.52942,2550.0,2549.5,4.359]
[1729731981043,3.52942,2550.0,2549.9,0.1024364]
[1729731981318,3.52942,2550.0,2549.5,0.829]
[1729731981656,3.5297,2549.8,2549.5,0.829]
[1729731981946,3.5297,2549.8,2549.3,3.53025]
[1729731981947,3.5297,2549.8,2549.6,0.09902185]
[1729731982157,3.62752211,2550.0,2549.6,0.09902185]
[1729731982449,3.52957,2549.9,2549.4,0.07844014]
[1729731982653,3.52957,2549.9,2549.4,0.07844013]
[1729731982962,3.52969,2549.8,2549.4,0.44376901]
[1729731983171,3.52969,2549.8,2549.5,0.09902185]
[1729731983543,3.52969,2549.8,2549.4,0.07844012]
[1729731983745,3.52957,2549.9,2549.6,0.09902185]
[1729731983970,3.52957,2549.9,2549.4,3.60867012]
[1729731984151,3.52957,2549.9,2549.7,0.09902185]
[1729731984475,3.52957,2549.9,2549.4,3.60867012]
[1729731984761,3.52957,2549.9,2549.8,0.09902185]
[1729731984962,3.52957,2549.9,2549.3,4.35925]
[1729731985173,3.52957,2549.9,2549.8,0.09902185]
[1729731985373,3.52957,2549.9,2549.4,3.6086601]
[1729731985668,3.52976,2549.8,2549.3,4.35925]
[1729731985864,3.52936,2550.1,2549.6,3.52995]
[1729731986070,3.52936,2550.1,2549.6,3.60838458]
[1729731986234,3.52948,2550.0,2549.4,3.966095]
[1729731986436,3.52948,2550.0,2549.4,0.435925]
[1729731987269,3.52927,2550.1,2549.5,3.52997]
[1729731987437,3.52927,2550.1,2549.6,0.8264]
[1729731987634,3.52951,2550.0,2549.6,0.8264]
[1729731988878,3.52955,2549.9,2549.6,0.8264]
[1729731989081,3.52927,2550.1,2549.6,0.8264]
[1729731989283,3.52909,2550.3,2549.7,0.07843515]
[1729731989471,3.5292,2550.2,2549.7,3.5297]
[1729731989783,3.52945,2550.0,2549.6,0.8264]
[1729731990278,3.52941,2550.0,2549.3,0.8264]
[1729731990478,3.62759238,2549.9,2549.7,0.09882712]
[1729731990778,3.52946,2550.0,2549.5,3.53008]
[1729731991182,3.52955,2549.9,2549.6,0.09882712]
[1729731991485,3.52955,2549.9,2549.4,3.60867025]
[1729731991644,3.52955,2549.9,2549.7,0.09882712]
[1729731991843,3.52943,2550.0,2549.5,0.79654303]
[1729731992041,3.52956,2549.9,2549.6,0.09882712]
[1729731992241,3.52943,2550.0,2549.6,0.17726136]
[1729731992481,3.52943,2550.0,2549.6,0.09882712]
[1729731992670,7.05897,2550.0,2549.4,3.5302]
[1729731992868,7.05897,2550.0,2549.7,0.09882712]
[1729731993064,7.05897,2550.0,2549.4,3.5302]
[1729731993384,3.52958,2549.9,2549.8,0.09882712]
[1729731993556,3.52974,2549.8,2549.3,4.35668]
[1729731993761,3.52974,2549.8,2549.3,5.145404]
[1729731994484,0.09804783,2549.7,2549.3,0.8264]
[1729731994784,3.52991,2549.7,2549.3,0.8264]
[1729731994949,3.5301,2549.5,2549.3,0.8264]
[1729731996595,3.62798157,2549.7,2549.3,0.8264]
[1729731996801,3.52999,2549.6,2549.3,0.8264]
[1729731996963,3.62798157,2549.7,2549.3,0.8264]
[1729731997274,3.52996,2549.6,2549.3,0.8264]
[1729731997475,3.62798157,2549.7,2549.3,0.8264]
[1729731997867,3.52998,2549.6,2549.3,0.8264]
[1729731999614,3.52996,2549.6,2549.3,0.8264]
[1729732000033,3.53013,2549.5,2549.3,0.8264]
[1729732000323,0.09806153,2549.4,2549.0,0.8264]
[1729732000534,3.53045,2549.3,2549.0,0.8264]
[1729732001027,3.53054,2549.2,2549.0,0.8264]
[1729732001187,3.53082,2549.0,2548.6,0.8264]
[1729732001385,3.60945022,2548.9,2548.3,0.8264]
[1729732001587,4.33696,2549.2,2548.0,0.8264]
[1729732001588,3.53156,2548.5,2548.0,0.8264]
[1729732001793,3.53156,2548.5,2548.0,4.35857]
[1729732002090,0.09810191,2548.4,2548.0,0.8264]
[1729732002310,3.62981191,2548.4,2548.0,0.8264]
[1729732002787,3.62952383,2548.6,2548.0,0.8264]
[1729732003135,3.62952383,2548.6,2548.1,3.53203]
[1729732003922,3.53142,2548.6,2548.0,1.22526911]
[1729732004094,3.53142,2548.6,2548.0,4.83585218]
[1729732004294,3.53149,2548.5,2548.0,4.83585218]
[1729732005027,3.53149,2548.5,2548.1,0.08938747]
[1729732005322,3.5319,2548.2,2548.1,0.08938747]
[1729732005526,3.70756401,2548.2,2547.7,3.53255]
[1729732005730,3.63012379,2548.2,2548.1,0.08938747]
[1729732006032,4.4038783,2548.2,2547.6,4.35906]
[1729732006193,3.63012379,2548.2,2548.1,0.08938747]
[1729732006389,3.53207,2548.1,2547.6,4.35906]
[1729732006728,0.09811379,2548.2,2547.6,4.35906]
[1729732007041,0.09811379,2548.2,2547.6,4.35904]
[1729732007206,0.09811379,2548.2,2547.7,3.53257]
[1729732007949,0.09811379,2548.2,2547.6,4.35904]
[1729732008115,0.09811379,2548.2,2547.7,3.53259]
[1729732008432,0.09811379,2548.2,2547.6,4.794944]
[1729732008433,3.63002379,2548.2,2547.6,4.794944]
[1729732008640,0.09811379,2548.2,2547.6,4.794944]
[1729732008801,3.53207,2548.1,2547.6,3.968544]
[1729732009002,0.8064,2547.8,2547.4,0.8264]
[1729732009209,0.8064,2548.1,2547.6,3.53264]
[1729732009428,0.8064,2548.1,2547.7,3.53253]
[1729732010029,3.0,2548.4,2547.9,3.53222]
[1729732010231,3.09811334,2548.4,2547.9,3.53222]
[1729732010725,3.53184,2548.3,2547.8,0.90489899]
[1729732010913,3.63012331,2548.2,2547.5,4.35917]
[1729732011114,0.8064,2548.1,2547.5,1.615624]
[1729732011336,0.8064,2548.1,2547.3,3.53306]
[1729732011337,3.53248,2547.8,2547.3,3.53306]
[1729732011545,3.63042559,2548.0,2547.4,3.53293]
[1729732011843,3.53234,2547.9,2547.4,3.53293]
[1729732012003,0.0981283,2547.8,2547.3,4.35946]
[1729732012204,0.0981283,2547.9,2547.4,3.533]
[1729732012608,3.63039829,2548.0,2547.4,0.07850263]
[1729732012803,3.63039829,2548.0,2547.3,4.35943]
[1729732013032,3.63039829,2548.0,2547.5,3.53277]
[1729732013230,0.09812829,2548.0,2547.5,3.53277]
[1729732013449,3.53171,2548.4,2548.0,3.53217]
[1729732013450,0.77,2548.4,2548.0,3.53217]
[1729732014227,0.77,2548.4,2547.9,3.53228]
[1729732014631,3.0,2548.3,2547.9,3.53228]
[1729732014852,3.0,2548.3,2547.7,4.3212]
[1729732014853,6.5318,2548.3,2547.7,7.85369]
[1729732015053,3.0,2548.3,2547.8,3.53236]
[1729732015464,3.0,2548.3,2547.8,3.53235]
[1729732015960,3.0,2548.3,2547.9,3.61077719]
[1729732016345,3.0,2548.3,2547.9,3.53229]
[1729732016549,3.098109,2548.3,2547.9,3.53229]
[1729732017262,3.0,2548.3,2547.9,3.53229]
[1729732017557,3.53183,2548.3,2547.7,4.32122]
[1729732017764,3.53212,2548.1,2547.7,0.7887]
[1729732018241,3.53233,2547.9,2547.5,0.7887]
[1729732018436,3.53246,2547.8,2547.3,4.757703]
[1729732018674,0.09812135,2547.9,2547.4,3.533]
[1729732018862,3.53233,2547.9,2547.4,3.533]
[1729732019061,3.63070554,2547.8,2547.3,1.224643]
[1729732019252,0.09812554,2547.8,2547.3,4.757773]
[1729732019659,0.09812554,2547.8,2547.3,4.757713]
[1729732019882,3.53233,2547.9,2547.4,3.53292]
[1729732020092,3.53233,2547.9,2547.4,0.08886682]
[1729732020788,0.77,2547.7,2547.4,0.08886682]
[1729732020952,0.77,2547.7,2547.2,3.53327]
[1729732021154,0.09813592,2547.6,2547.5,0.08901286]
[1729732021461,3.53275,2547.6,2547.1,3.53333]
[1729732021661,4.3026,2547.7,2547.5,0.08901286]
[1729732021873,0.77,2547.7,2547.3,3.5331]
[1729732022085,0.77,2547.7,2547.6,0.0890518]
[1729732022276,0.77,2547.7,2547.2,7.14501872]
[1729732022598,0.77,2547.7,2547.3,3.53307]
[1729732022765,0.77,2547.7,2547.3,0.08927571]
[1729732023168,4.3026,2547.7,2547.3,0.08927571]
[1729732023697,4.40073589,2547.7,2547.3,0.08927571]
[1729732023998,3.53276,2547.6,2547.3,0.08927571]
[1729732024214,3.53276,2547.6,2547.0,4.32217]
[1729732024215,3.53332,2547.2,2546.5,0.7887]
[1729732024505,0.09815133,2547.1,2546.5,0.7887]
[1729732024712,0.09815445,2547.4,2547.1,3.53343]
[1729732024886,4.30218,2548.0,2547.5,0.7887]
[1729732025355,0.0981274,2547.9,2547.5,4.3215]
[1729732025552,0.0981274,2547.9,2547.5,4.32149]
[1729732025746,4.30218,2548.0,2547.5,4.32146]
[1729732028053,0.77,2548.0,2547.6,0.07850188]
[1729732028253,0.8319,2548.2,2547.7,3.61095568]
[1729732028469,4.46199772,2548.2,2547.7,3.53246]
[1729732028670,0.8319,2548.2,2547.8,3.53244]
[1729732029047,0.8319,2548.2,2547.6,3.53265]
[1729732029048,0.0981177,2548.1,2547.6,3.53265]
[1729732029252,4.46200539,2548.2,2547.7,3.5325]
[1729732029886,4.46200539,2548.2,2547.6,3.53265]
[1729732030415,7.99398539,2548.2,2547.6,3.53265]
[1729732030577,0.09811854,2548.1,2547.6,3.53265]
[1729732030891,4.36388,2548.2,2547.7,3.53248]
[1729732031091,4.46199845,2548.2,2547.7,3.53248]
[1729732031557,7.99402845,2548.2,2547.6,3.53265]
[1729732031777,3.63018992,2548.1,2547.6,3.53265]
[1729732032089,3.53218,2548.0,2547.5,0.7887]
[1729732032259,0.8319,2547.8,2547.4,3.53293]
[1729732032865,0.09812708,2547.7,2547.0,0.7561]
[1729732033069,0.09812708,2547.7,2547.2,7.06644]
[1729732033267,0.09812708,2547.7,2547.2,3.53322]
[1729732033594,3.63081708,2547.7,2547.2,3.53322]
[1729732034089,0.09812708,2547.7,2547.2,3.53322]
[1729732034299,0.09812708,2547.7,2547.3,3.53314]
[1729732034591,0.8319,2547.8,2547.5,3.53274]
[1729732035091,3.09812802,2548.1,2547.6,0.08648487]
[1729732035261,6.63024802,2548.1,2547.6,0.08648487]
[1729732036191,3.53219,2548.0,2547.6,0.08648487]
[1729732036551,0.09812761,2547.9,2547.6,0.08648487]
[1729732036750,3.63031759,2548.0,2547.6,0.08648487]
[1729732037149,3.53235,2547.9,2547.6,0.08648487]
[1729732037387,0.09812767,2547.8,2547.4,0.24559287]
[1729732037591,3.63047768,2547.9,2547.7,0.08648487]
[1729732037754,3.63047768,2547.9,2547.4,3.77859256]
[1729732037957,4.64674445,2547.9,2547.8,0.08648487]
[1729732038284,4.64674445,2547.9,2547.0,3.6120642]
[1729732038285,3.53245,2547.8,2547.0,3.6120642]
[1729732038491,0.8319,2547.6,2547.1,3.77904119]
[1729732038667,0.09814295,2547.5,2547.1,3.61991487]
[1729732038870,0.93004295,2547.6,2547.1,3.61991487]
[1729732039068,0.8319,2547.6,2547.2,3.53321]
[1729732039477,0.8319,2547.6,2547.3,0.08360204]
[1729732039657,0.8319,2547.6,2547.3,3.61669204]
[1729732039853,7.54858677,2547.9,2547.3,3.61669204]
[1729732039854,0.8319,2548.6,2547.5,3.53287]
[1729732040068,3.62966094,2548.5,2547.9,3.53224]
[1729732040462,0.09811094,2548.5,2548.1,3.53196]
[1729732040999,0.09811094,2548.5,2548.0,0.08360204]
[1729732041000,4.36376,2548.3,2548.2,0.08360204]
[1729732041294,4.4618815,2548.3,2547.6,3.53271]
[1729732041465,4.4618815,2548.3,2547.5,3.77830098]
[1729732041466,4.4617815,2548.3,2548.2,0.08360204]
[1729732041664,4.4617815,2548.3,2547.5,3.53274]
[1729732041665,3.53215,2548.1,2547.5,7.06552]
[1729732041869,0.09812172,2548.0,2547.5,3.53274]
[1729732042067,4.36434,2547.9,2547.6,0.08360204]
[1729732042257,0.09813285,2547.8,2547.6,0.08360204]
[1729732042458,3.63059285,2547.8,2547.4,3.533]
[1729732042686,3.63059285,2547.8,2547.7,0.08360204]
[1729732042883,3.63059285,2547.8,2547.4,3.533]
[1729732043082,3.63059285,2547.8,2547.7,0.08360204]
[1729732043291,4.43007014,2547.8,2547.4,3.533]
[1729732043497,0.93003284,2547.9,2547.7,0.08358256]
[1729732043789,4.33861,2548.1,2547.8,0.08363127]
[1729732043998,0.09812885,2548.0,2547.5,3.53279]
[1729732044162,0.09812885,2548.0,2547.9,0.08363127]
[1729732044359,0.09812885,2548.0,2547.5,3.53279]
[1729732044666,0.09812885,2548.0,2547.9,0.08363127]
[1729732044871,0.09812885,2548.0,2547.5,3.53279]
[1729732045098,0.09812885,2548.0,2547.9,0.08363127]
[1729732045634,0.8065,2548.1,2547.5,0.07849721]
[1729732045802,4.43669152,2548.1,2547.9,0.08363127]
[1729732046006,1.25016915,2548.1,2547.7,3.53258]
[1729732046200,0.8065,2548.1,2548.0,0.08363127]
[1729732046439,0.8065,2548.1,2547.7,3.53258]
[1729732046629,0.09812203,2548.0,2547.5,3.53278]
[1729732046934,0.09812203,2548.0,2547.5,7.06558]
[1729732047099,0.09812203,2548.0,2547.5,3.53278]
[1729732047306,0.09812203,2548.0,2547.5,7.06557]
[1729732047832,0.09812203,2548.0,2547.6,3.53273]
[1729732048185,4.43668468,2548.1,2547.6,3.53273]
[1729732048996,3.53218,2548.0,2547.5,3.53278]
[1729732049190,0.09812467,2548.0,2547.5,3.53278]
[1729732049380,0.09812467,2548.0,2547.5,7.06558]
[1729732049793,0.09812467,2548.0,2547.3,0.24557747]
[1729732049794,3.53233,2547.9,2547.3,3.77865747]
[1729732050040,0.09813039,2547.8,2547.6,0.08363127]
[1729732050192,0.46117643,2547.8,2547.3,7.06611]
[1729732050391,3.63058039,2547.8,2547.7,0.08363127]
[1729732050616,3.53269,2547.7,2547.1,3.53335]
[1729732050921,3.63058039,2547.8,2547.1,3.53335]
[1729732050922,3.63093748,2547.6,2547.1,3.53335]
[1729732051140,0.8065,2547.5,2547.1,3.53335]
[1729732051291,0.90464162,2547.5,2547.1,3.53335]
[1729732051492,0.90464162,2547.5,2547.1,3.53334]
[1729732051843,0.90464162,2547.5,2547.1,7.06668]
[1729732052432,0.8065,2547.5,2547.1,7.06668]
[1729732052637,0.8065,2547.5,2547.1,3.53334]
[1729732053131,0.8065,2547.5,2547.2,3.53325]
[1729732053626,0.90464149,2547.7,2547.2,4.27232104]
[1729732053827,0.8065,2547.7,2547.4,3.533]
[1729732054019,0.8065,2547.7,2547.2,4.27232104]
[1729732054196,4.43725773,2547.7,2547.2,7.06646]
[1729732054393,0.90463773,2547.7,2547.3,3.5331]
[1729732055192,0.8065,2547.7,2547.4,3.53295]
[1729732057297,0.8065,2547.7,2547.3,3.5331]
[1729732057901,4.3391,2547.7,2547.1,10.67608022]
[1729732058107,0.8065,2547.7,2547.1,8.31429787]
[1729732058289,0.8065,2547.7,2547.2,3.53329]
[1729732058620,0.8065,2547.7,2547.4,7.06585]
[1729732058798,0.8065,2547.7,2547.4,3.53292]
[1729732059693,0.8065,2547.7,2547.2,3.61166762]
[1729732059881,0.8065,2547.7,2547.3,3.53306]
[1729732060310,0.8065,2547.7,2547.2,0.86382759]
[1729732060471,0.8065,2547.7,2547.4,3.53293]
[1729732061498,0.8065,2547.7,2547.2,7.93021759]
[1729732061902,0.8065,2547.7,2547.3,3.53311]
[1729732062106,0.8065,2547.7,2547.4,3.97260376]
[1729732063376,0.8065,2547.7,2547.4,0.43969376]
[1729732063789,0.8065,2547.7,2547.3,7.06619]
[1729732065071,0.8065,2547.7,2547.4,0.08138078]
[1729732065376,0.8065,2547.7,2547.4,3.61430078]
[1729732066276,0.61451679,2549.5,2548.3,0.01]
[1729732066473,1.9203861,2550.5,2548.3,0.01]
[1729732066474,2.94522571,2550.2,2549.3,3.53028]
[1729732066795,3.52856,2550.7,2549.3,3.53028]
[1729732066796,3.93814611,2550.8,2549.8,3.52968]
[1729732067000,4.33458,2551.0,2550.0,3.52939]
[1729732067174,4.33458,2551.0,2550.2,3.52912]
[1729732067175,0.8065,2551.0,2550.2,3.52912]
[1729732067509,0.8065,2551.0,2550.4,3.52873]
[1729732067677,0.35850788,2550.8,2550.4,3.52873]
[1729732067872,2.20553167,2551.4,2550.6,3.52857]
[1729732068438,2.20553167,2551.4,2550.7,0.70832756]
[1729732068717,2.20553167,2551.4,2550.7,0.07992184]
[1729732069070,2.20553167,2551.4,2550.6,3.52856]
[1729732069476,2.20553167,2551.4,2550.7,0.07639487]
[1729732070114,2.20553167,2551.4,2550.8,3.52827]
[1729732070296,2.20553167,2551.4,2550.8,7.05644]
[1729732070610,2.20553167,2551.4,2550.9,3.60354484]
[1729732070808,2.20553167,2551.4,2550.9,0.78867833]
[1729732070973,2.20553167,2551.4,2550.9,4.31683833]
[1729732071401,2.20553167,2551.4,2550.9,4.31679833]
[1729732071611,2.20553167,2551.4,2550.9,0.78867833]
[1729732071780,2.20553167,2551.4,2550.9,4.31672833]
[1729732071986,2.20553167,2551.4,2551.0,3.52801]
[1729732072187,2.20553167,2551.4,2551.0,3.60074611]
[1729732072386,2.20553167,2551.4,2551.0,4.38496607]
[1729732072585,2.20553167,2551.4,2551.0,4.38487607]
[1729732072775,1.39903167,2551.4,2551.2,3.52761]
[1729732072980,1.39903167,2551.4,2551.3,3.52761]
[1729732073309,1.39903167,2551.4,2551.3,3.60034611]
[1729732073491,1.39903167,2551.4,2551.3,4.15034611]
[1729732073835,8.17e-06,2551.4,2551.3,4.96294611]
[1729732073985,0.1234004,2551.7,2551.6,4.07719]
[1729732074325,4.62e-06,2551.7,2551.6,14.03675313]
[1729732074622,4.62e-06,2551.7,2551.6,12.57925848]
[1729732074979,4.62e-06,2551.7,2551.6,14.03068767]
[1729732075431,4.62e-06,2551.7,2551.6,7.98208951]
[1729732075719,4.62e-06,2551.7,2551.6,13.79014517]
[1729732076297,0.8226,2553.3,2552.8,3.52553]
[1729732076825,0.8226,2553.3,2552.9,0.07227041]
[1729732077128,0.8226,2553.3,2552.8,3.52543]
[1729732077331,4.60716897,2553.6,2553.3,3.52484]
[1729732077332,0.8226,2553.6,2553.3,3.52484]
[1729732077485,0.7726,2553.6,2553.2,3.52493]
[1729732077815,4.60716897,2553.4,2552.6,3.52568]
[1729732078049,0.4607169,2553.3,2552.4,3.52599]
[1729732078187,0.4607169,2553.3,2552.5,3.52586]
[1729732078388,3.4607169,2553.3,2552.6,3.60414327]
[1729732078919,0.4607169,2553.3,2552.6,3.60414327]
[1729732079095,3.7726,2553.6,2552.6,3.5258]
[1729732079811,3.7726,2553.6,2552.6,3.52581]
[1729732080054,4.60716897,2552.8,2552.7,0.06595647]
[1729732080343,3.0,2552.7,2551.6,4.72804669]
[1729732080655,1.2833169,2552.7,2552.2,3.52634]
[1729732080832,0.8226,2552.7,2552.2,3.52634]
[1729732081016,3.0,2553.0,2552.3,3.60449481]
[1729732081017,0.8226,2553.0,2552.3,3.60449481]
[1729732081216,0.8226,2553.0,2552.5,3.52585]
[1729732081448,0.8226,2553.5,2552.7,3.52564]
[1729732081757,0.8226,2553.5,2553.1,3.52511]
[1729732082172,0.8226,2553.5,2553.2,3.52496]
[1729732082325,0.8226,2553.5,2553.1,3.52511]
[1729732082529,0.8226,2553.5,2552.9,3.52535]
[1729732082860,0.8226,2553.5,2553.0,4.07523]
[1729732083358,3.8226,2553.9,2553.3,3.52482]
[1729732083583,0.8226,2553.9,2553.0,2.122658]
[1729732083854,0.1234004,2554.2,2553.2,3.52494]
[1729732084067,0.1234004,2554.2,2553.0,1.3626]
[1729732084354,0.1234004,2554.2,2553.5,3.52447]
[1729732084555,0.0734004,2554.2,2553.7,0.55]
[1729732084737,0.0734004,2554.2,2553.8,0.07830185]
[1729732085056,0.0734004,2554.2,2553.5,0.55]
[1729732085250,0.0734004,2554.2,2553.3,3.52482]
[1729732085587,3.52384,2554.1,2553.1,0.55]
[1729732085753,0.0734004,2554.2,2553.5,0.55]
[1729732085909,0.0734004,2554.2,2553.7,0.55]
[1729732086250,0.0734004,2554.2,2553.8,0.07830187]
[1729732086457,0.0734004,2554.2,2553.5,0.55]
[1729732086614,0.0734004,2554.2,2553.5,0.759951]
[1729732086809,0.0734004,2554.2,2553.5,3.52446]
[1729732087043,0.0734004,2554.2,2553.7,0.55]
[1729732087236,0.0734004,2554.2,2553.6,0.55]
[1729732087444,0.0734004,2554.2,2553.8,0.55]
[1729732087847,0.0734004,2554.2,2553.9,0.07829794]
[1729732088003,0.0734004,2554.2,2553.8,0.55]
[1729732088910,0.0734004,2554.2,2553.1,5.39516897]
[1729732089241,0.7655,2554.1,2553.2,0.5395169]
[1729732089451,0.7655,2554.1,2553.3,0.07830892]
[1729732089762,0.7655,2554.1,2553.3,0.07830893]
[1729732090250,0.7655,2554.1,2553.3,0.55]
[1729732090413,0.7655,2554.1,2553.4,0.07831202]
[1729732090617,0.0734004,2554.2,2553.5,4.07452]
[1729732091139,0.0734004,2554.2,2553.5,0.55]
[1729732093451,3.52376,2554.1,2553.4,0.46927189]
[1729732093651,0.0734004,2554.2,2553.2,7.5892869]